fUSD/lending_fUSD_20240204
["ID","MTS","AMOUNT","RATE_DAILY","PERIOD"]
[313282723,1707077434692,-472.04,0.00022513,2]
[313282724,1707077434704,-1139.5,0.00022513,2]
[313282725,1707077434729,-984.23231862,0.00022513,2]
[313282726,1707077434742,-27683.42546053,0.00022513,2]
[313282727,1707077434754,-2623.65594129,0.00022513,2]
[313282728,1707077434765,-351.48000001,0.00022513,2]
[313282733,1707077438022,-727.11163686,0.00022513,2]
[313282734,1707077438034,-741.27723955,0.00022513,2]
[313282735,1707077438047,-420.8888349,0.00022513,2]
[313282739,1707077440324,-16468.98056319,0.00022513,2]
[313282740,1707077440337,-254.86,0.00022522,2]
[313282741,1707077440350,-4584.97913995,0.00022541,2]
[313282742,1707077440362,-21340.21,0.00022542,2]
[313282743,1707077440373,-157.92720345,0.00022575,2]
[313282744,1707077440383,-336.0,0.00022593,2]
[313282745,1707077440393,-216.72,0.00022651,2]
[313282746,1707077440403,-157.92720345,0.00022657,2]
[313282747,1707077440414,-726.61,0.00022684,2]
[313282748,1707077440424,-713.8,0.00022684,2]
[313282749,1707077440436,-732.79,0.00022684,2]
[313282750,1707077440447,-157.92720345,0.00022738,2]
[313282751,1707077440459,-518.38382827,0.00022768,2]
[313282752,1707077440469,-591.8767425,0.00022769,2]
[313282753,1707077440480,-1186.66,0.00022815,2]
[313282754,1707077440491,-157.92720345,0.00022819,2]
[313282755,1707077440501,-721.44,0.00022825,2]
[313282756,1707077440511,-711.93,0.00022832,2]
[313282757,1707077440521,-737.59,0.00022897,2]
[313282758,1707077440532,-727.31,0.00022897,2]
[313282759,1707077440543,-724.2,0.00022897,2]
[313282760,1707077440554,-16681.40344573,0.00022897,2]
[313282761,1707077440564,-4173.2147,0.00022898,2]
[313282762,1707077440580,-330.0054,0.00022898,2]
[313282763,1707077440591,-3335.2758,0.00022898,2]
[313282764,1707077440602,-650.25071759,0.000229,2]
[313282765,1707077440613,-154.09559169,0.000229,2]
[313282766,1707077440623,-5000.0,0.000229,2]
[313282767,1707077440634,-267.89019919,0.000229,2]
[313282768,1707077440644,-157.92720345,0.000229,2]
[313282769,1707077440657,-201.5901036,0.000229,2]
[313282770,1707077440667,-194.58103893,0.000229,2]
[313282771,1707077440678,-2170.54386932,0.000229,2]
[313282772,1707077440691,-167.67,0.00022928,2]
[313282773,1707077440703,-1000.0,0.00022997,5]
[313282774,1707077440714,-342.68960484,0.00022998,2]
[313282775,1707077440725,-1502.89238578,0.00022999,2]
[313282776,1707077440738,-393.49433292,0.00022999,2]
[313282777,1707077440753,-500.0,0.00022999,2]
[313282778,1707077440767,-500.0,0.00022999,2]
[313282779,1707077440778,-173.88309573,0.00022999,2]
[313282780,1707077440794,-448.55835031,0.00022999,2]
[313282781,1707077440806,-500.0,0.00022999,2]
[313282782,1707077440817,-245.37298281,0.00022999,2]
[313282783,1707077440828,-616.68294029,0.00022999,2]
[313282784,1707077440838,-500.0,0.00022999,2]
[313282785,1707077440850,-500.0,0.00022999,2]
[313282786,1707077440861,-474.91804204,0.00022999,2]
[313282787,1707077440871,-500.0,0.00022999,2]
[313282788,1707077440881,-342.945141,0.00022999,2]
[313282789,1707077440893,-500.0,0.00022999,2]
[313282790,1707077440903,-434.95875394,0.00022999,2]
[313282791,1707077440914,-500.0,0.00022999,2]
[313282792,1707077440925,-500.0,0.00022999,2]
[313282793,1707077440935,-1000.0,0.00022999,5]
[313282794,1707077440946,-826.31972725,0.00022999,5]
[313282795,1707077440957,-73881.38791944,0.00023,2]
[313282796,1707077440972,-1087.60751,0.00023,2]
[313282807,1707077441725,-21315.030842,0.00023,2]
[313282812,1707077442688,-470698.9893452,0.00023,2]
[313282813,1707077442799,-854.58230652,0.00023,2]
[313282824,1707077466783,2971.1453248,0.00022331,2]
[313282827,1707077582712,150.0,0.00022,2]
[313282828,1707077634453,151.09808341,0.00022,2]
[313282829,1707077641255,353.52,0.00022,2]
[313282830,1707077670735,2667.912243,0.00022435,2]
[313282831,1707078213626,370.01,0.00021309,2]
[313282832,1707078336450,-150.0,0.00022548,2]
[313282833,1707078336475,-200.0,0.00022652,2]
[313282834,1707078336500,-162.82450773,0.00022669,2]
[313282835,1707078336524,-162.8245077,0.00022727,2]
[313282836,1707078336547,-4584.97913995,0.00022766,2]
[313282837,1707078336571,-300.0,0.00022767,2]
[313282838,1707078336595,-150.0,0.00022767,2]
[313282839,1707078336619,-388.21422797,0.00022768,2]
[313282840,1707078336643,-61890.91228847,0.00022769,2]
[313282841,1707078336667,-9460.24532818,0.0002277,2]
[313282842,1707078392392,250.0,0.00022294,2]
[313282843,1707078446903,3199.69692174,0.00021857,2]
[313282844,1707078460879,3194.57080692,0.00021857,2]
[313282845,1707078468757,307.07,0.00022145,2]
[313282846,1707078490001,183.28,0.00022145,2]
[313282847,1707078508068,165.37,0.00022109,2]
[313282848,1707078508571,701.95,0.00022109,2]
[313282849,1707078513414,200.0,0.00022109,2]
[313282850,1707078616685,166.05,0.00022109,2]
[313282868,1707078631958,-150.0,0.0002254,2]
[313282869,1707078631967,-150.0,0.0002254,2]
[313282870,1707078631978,-1807.65906493,0.0002254,2]
[313282871,1707078631993,-20884.21277777,0.0002254,2]
[313282872,1707078632009,-2314.94205742,0.00022541,2]
[313282873,1707078632019,-4584.97913995,0.00022541,2]
[313282874,1707078632029,-14848.43925536,0.00022542,2]
[313282892,1707078632868,395.27,0.00020192,2]
[313282893,1707078633082,395.27,0.00022456,2]
[313282903,1707078637833,-929.33541148,0.00022542,2]
[313282905,1707078638062,-184.99762831,0.00022542,2]
[313282906,1707078638074,-3688.47346551,0.00022542,2]
[313282907,1707078638175,-32767.75423934,0.00022542,2]
[313282908,1707078638185,-713.69,0.00022765,2]
[313282909,1707078638194,-11773.78482572,0.00022765,2]
[313282923,1707078640362,-7954.21144346,0.00022765,2]
[313282924,1707078640372,-736.99,0.00022767,2]
[313282925,1707078640385,-525.67645307,0.00022768,2]
[313282926,1707078640396,-1070.21578266,0.00022768,2]
[313282927,1707078640408,-200.58850368,0.00022769,2]
[313282928,1707078640420,-216.48921933,0.0002277,2]
[313282929,1707078640432,-216.48921933,0.0002277,2]
[313282930,1707078640444,-216.48921933,0.0002277,2]
[313282931,1707078640457,-162.8245077,0.00022785,2]
[313282932,1707078640468,-800.0,0.00022816,2]
[313282933,1707078640478,-162.8245077,0.00022842,2]
[313282934,1707078640488,-1373.67755634,0.000229,2]
[313282935,1707078640501,-9790.16646105,0.000229,2]
[313282936,1707078640526,-386.62877239,0.000229,2]
[313282937,1707078640543,-3862.32540096,0.000229,2]
[313282938,1707078640553,-162.8245077,0.000229,2]
[313282939,1707078640564,-154.30632473,0.000229,2]
[313282940,1707078640574,-2500.0,0.000229,2]
[313282941,1707078640586,-855.1194,0.000229,2]
[313282942,1707078640597,-711.96412541,0.000229,2]
[313282943,1707078640609,-2742.3454249,0.000229,2]
[313282944,1707078640620,-213.36543943,0.000229,2]
[313282945,1707078640639,-275.86,0.00022922,2]
[313282946,1707078640651,-2000.0,0.00022935,2]
[313282947,1707078640663,-525.17910571,0.00022998,2]
[313282948,1707078640675,-342.68960484,0.00022998,2]
[313282949,1707078640685,-338.23569729,0.00022998,2]
[313282950,1707078640695,-533.90351792,0.00022998,2]
[313282951,1707078640705,-155.0,0.00022999,2]
[313282952,1707078640714,-477.65712175,0.00022999,2]
[313282953,1707078640725,-97597.67006398,0.00023,2]
[313282965,1707078642848,-1115003.85576199,0.00023,2]
[313282976,1707078642956,-435.62703757,0.00023,2]
[313282994,1707078645859,-2127.35,0.00022662,2]
[313283000,1707078645917,-335.27295591,0.00022662,2]
[313283015,1707078646097,-513.63494409,0.00022662,2]
[313283016,1707078646108,-1241.36505591,0.00022769,2]
[313283020,1707078722059,150.0,0.00022482,2]
[313283021,1707078760053,226.24,0.00022361,2]
[313283022,1707078762509,200.52345751,0.00022249,2]
[313283023,1707078781290,23900.0,0.00022361,2]
[313283024,1707078786606,500.0,0.00022352,2]
[313283025,1707078787004,230.08829952,0.00022,2]
[313283026,1707078820063,184.14,0.00022392,2]
[313283027,1707078820253,184.14,0.00022453,2]
[313283028,1707078837657,250.0,0.00021819,2]
[313283030,1707078919095,651.85,0.00021795,2]
[313283031,1707078934754,177.57,0.00021795,2]
[313283032,1707078957039,183.28,0.00021802,2]
[313283033,1707078964274,150.0,0.00022,2]
[313283034,1707078996341,966.21,0.00021794,2]
[313283035,1707079002061,2318.0,0.00021794,2]
[313283036,1707079044595,623.61336508,0.0002166,2]
[313283037,1707079060598,623.61336508,0.0002166,2]
[313283038,1707079078593,360.77002661,0.0002166,2]
[313283039,1707079086459,167.43,0.00021796,2]
[313283040,1707079088491,421.93,0.00019879,2]
[313283041,1707079088706,421.93,0.00022142,2]
[313283042,1707079187389,201.92,0.00021804,2]
[313283043,1707079213893,1303.98006503,0.00022488,2]
[313283044,1707079213920,500.0,0.00021918,2]
[313283046,1707079229582,500.0,0.00021812,2]
[313283047,1707079259483,748.63,0.00021812,2]
[313283048,1707079274735,173.48,0.00022067,2]
[313283049,1707079274970,173.48,0.00022127,2]
[313283050,1707079275219,173.48,0.00022188,2]
[313283051,1707079275427,173.48,0.00022248,2]
[313283052,1707079275684,173.48,0.00022309,2]
[313283053,1707079275937,173.48,0.00022369,2]
[313283054,1707079276140,173.48,0.0002243,2]
[313283055,1707079276368,173.48,0.0002249,2]
[313283056,1707079346610,23900.0,0.00021809,2]
[313283057,1707079363969,311.26,0.00021809,2]
[313283058,1707079368249,200.0,0.00021809,2]
[313283059,1707079399744,183.28,0.0002182,2]
[313283060,1707079421486,250.0,0.0002182,2]
[313283061,1707079426534,890.96,0.0002182,2]
[313283062,1707079433896,183.66,0.0002182,2]
[313283063,1707079529095,421.03960501,0.00021693,2]
[313283064,1707079530891,2000.0,0.00021765,2]
[313283065,1707079541636,257.9,0.00022,2]
[313283066,1707079542896,257.9,0.00022137,2]
[313283067,1707079544186,257.9,0.00022274,2]
[313283068,1707079545613,512.11,0.00022411,2]
[313283069,1707079550886,176.92,0.00022,2]
[313283070,1707079553435,425.73,0.00019851,2]
[313283071,1707079553654,425.73,0.00022115,2]
[313283072,1707079555070,544.45125247,0.00021978,2]
[313283073,1707079600669,3209.72,0.00021935,2]
[313283074,1707079606185,150.0,0.00021761,2]
[313283075,1707079645697,258.51,0.00021781,2]
[313283076,1707079692728,163.12765907,0.00022437,2]
[313283077,1707079697738,163.12765903,0.00022488,2]
[313283078,1707079701527,150.7,0.00021994,2]
[313283079,1707079701734,150.7,0.00022061,2]
[313283080,1707079702154,150.7,0.00022129,2]
[313283081,1707079702576,150.7,0.00022196,2]
[313283082,1707079703087,150.7,0.00022264,2]
[313283083,1707079703130,150.7,0.00022331,2]
[313283084,1707079703234,150.7,0.00022399,2]
[313283085,1707079703463,150.7,0.00022466,2]
[313283086,1707079725235,507.58,0.00021745,2]
[313283087,1707079730777,496.49641403,0.00021744,2]
[313283088,1707079744794,492.462496,0.00022309,2]
[313283089,1707079765659,614.1,0.00021923,2]
[313283090,1707079789082,809.77,0.00021745,2]
[313283091,1707079798198,23900.0,0.00021745,2]
[313283092,1707079803713,669.0,0.00021745,2]
[313283103,1707079835167,-578.8885869,0.00022524,2]
[313283105,1707079835227,-646.75547743,0.00022524,2]
[313283106,1707079835243,-1089.29799309,0.00022524,2]
[313283107,1707079835254,-2197.2376404,0.00022525,2]
[313283108,1707079835269,-415.03901403,0.00022525,2]
[313283109,1707079835317,-430.86,0.00022525,2]
[313283110,1707079835486,-4767.99448748,0.00022525,2]
[313283111,1707079835496,-197.65742886,0.00022525,2]
[313283112,1707079835507,-2146.69723866,0.00022526,2]
[313283113,1707079835518,-5233.15937147,0.00022526,2]
[313283114,1707079835529,-4584.97913995,0.00022527,2]
[313283115,1707079835540,-699.44102538,0.00022528,2]
[313283116,1707079835551,-150.7,0.00022533,2]
[313283118,1707079835562,-150.0,0.00022536,2]
[313283119,1707079835587,-150.0,0.00022536,2]
[313283121,1707079835598,-761.27446852,0.00022539,2]
[313283123,1707079835609,-163.12765903,0.0002254,2]
[313283126,1707079835620,-176.92,0.00022548,2]
[313283127,1707079835630,-1635.74,0.00022548,2]
[313283129,1707079835641,-499.99,0.00022548,2]
[313283131,1707079835652,-163.12765903,0.00022591,2]
[313283133,1707079835663,-264.24903257,0.00022597,2]
[313283135,1707079835674,-315.24379737,0.00022597,2]
[313283136,1707079835686,-5460.96831257,0.00022597,2]
[313283137,1707079835696,-338.71913676,0.00022597,2]
[313283138,1707079835706,-4650.65386799,0.00022597,2]
[313283139,1707079835717,-199.85856477,0.00022597,2]
[313283140,1707079835727,-165.37513605,0.00022597,2]
[313283141,1707079835738,-155.0,0.00022597,2]
[313283142,1707079835749,-3154.41404609,0.00022597,2]
[313283143,1707079835759,-6458.99227782,0.00022598,2]
[313283144,1707079835769,-419.42323568,0.00022598,2]
[313283145,1707079835780,-1486.19,0.00022598,2]
[313283146,1707079835790,-150.99,0.00022598,2]
[313283147,1707079835799,-2022.46,0.00022598,2]
[313283148,1707079835810,-203.71035368,0.00022599,2]
[313283149,1707079835826,-150.7,0.00022601,2]
[313283150,1707079835836,-163.12765903,0.00022643,2]
[313283151,1707079835846,-150.7,0.00022668,2]
[313283152,1707079835856,-508.0388,0.0002267,2]
[313283153,1707079835866,-163.12765903,0.00022694,2]
[313283154,1707079835875,-150.7,0.00022736,2]
[313283155,1707079835885,-163.12765903,0.00022746,2]
[313283156,1707079835895,-155.0,0.00022768,2]
[313283157,1707079835905,-218.37844749,0.00022768,2]
[313283158,1707079835914,-8359.77442227,0.00022769,2]
[313283159,1707079835924,-1678.234,0.00022797,2]
[313283160,1707079835934,-934.3841,0.00022797,2]
[313283161,1707079835944,-163.12765903,0.00022797,2]
[313283162,1707079835954,-1000.0,0.000228,2]
[313283163,1707079835963,-2500.0,0.000228,2]
[313283164,1707079835973,-150.7,0.00022803,2]
[313283165,1707079835983,-163.12765903,0.00022849,2]
[313283166,1707079835993,-150.7,0.00022871,2]
[313283167,1707079836003,-201.92,0.00022894,2]
[313283168,1707079836014,-20055.50871206,0.00022896,2]
[313283169,1707079836024,-74977.0085,0.00022897,2]
[313283170,1707079836034,-949.13706426,0.00022898,2]
[313283171,1707079836044,-39354.6766,0.000229,2]
[313283172,1707079836053,-15228.0684,0.000229,2]
[313283173,1707079836063,-1000.0,0.000229,2]
[313283174,1707079836085,-2007.92942138,0.000229,2]
[313283175,1707079836096,-154.20860734,0.000229,2]
[313283176,1707079836106,-163.12765903,0.000229,2]
[313283177,1707079836116,-166.86256056,0.000229,2]
[313283178,1707079836127,-335.06987723,0.000229,2]
[313283179,1707079836137,-194.58103892,0.000229,2]
[313283180,1707079836147,-2691.77440238,0.000229,2]
[313283181,1707079836157,-150.7,0.00022938,2]
[313283182,1707079836167,-1259.57085833,0.00022996,2]
[313283183,1707079836177,-4638.55770228,0.00022996,2]
[313283184,1707079836188,-387.88583909,0.00022996,2]
[313283185,1707079836198,-203.22221247,0.00022996,2]
[313283186,1707079836208,-520.7962337,0.00022996,2]
[313283187,1707079836218,-155.0,0.00022996,2]
[313283188,1707079836227,-9156.09538295,0.00022996,2]
[313283189,1707079836237,-1139.78306733,0.00022997,2]
[313283190,1707079836247,-2788.02134693,0.00022997,2]
[313283191,1707079836257,-243.13018823,0.00022997,2]
[313283192,1707079836267,-658859.10257334,0.00022997,2]
[313283193,1707079836276,-3037.94768246,0.00022998,2]
[313283194,1707079836287,-1044.13958215,0.00022998,2]
[313283195,1707079836297,-24410.55467101,0.00022998,2]
[313283196,1707079836307,-365.07230987,0.00022998,2]
[313283197,1707079836322,-699.81053348,0.00022998,2]
[313283198,1707079836333,-502.73699602,0.00022998,2]
[313283199,1707079836343,-155.0,0.00022998,2]
[313283200,1707079836357,-1001.47693699,0.00022999,2]
[313283201,1707079836368,-524.49962544,0.00022999,2]
[313283202,1707079836379,-1048.26100712,0.00022999,2]
[313283203,1707079836389,-920.6223945,0.00022999,2]
[313283204,1707079836402,-342.68960484,0.00022999,2]
[313283205,1707079836412,-289.74601572,0.00022999,2]
[313283206,1707079836422,-218.5573922,0.00022999,2]
[313283207,1707079836434,-163814.67076802,0.00023,2]
[313283208,1707079836450,-765.18057038,0.00023,2]
[313283209,1707079836463,-467.8057218,0.00023,2]
[313283210,1707079836475,-547.9993307,0.00023,2]
[313283211,1707079836487,-3213.0006693,0.00023,2]
[313283226,1707079838337,-46022.3983723,0.00023,2]
[313283248,1707079840606,-198533.30133264,0.00023,2]
[313283254,1707079840682,-4030.58654475,0.00023,2]
[313283255,1707079840698,-2741.73499999,0.00023,2]
[313283256,1707079840710,-917.42877982,0.00023,2]
[313283257,1707079840721,-1066.58,0.00023,2]
[313283258,1707079841336,-7195.50037302,0.00023,2]
[313283259,1707079841395,-21298.71966402,0.00023,2]
[313283260,1707079841455,-4294.88132638,0.00023,2]
[313283303,1707079843287,-252.617585,0.0002253,2]
[313283305,1707079843297,-253200.77108578,0.00023,2]
[313283398,1707079846102,-671.99999977,0.00023,2]
[313283647,1707079863008,1281.9469039,0.00021745,5]
[313283648,1707079867529,1544.17200605,0.00020697,5]
[313283649,1707079869128,421.03960501,0.00022078,2]
[313283650,1707079879004,1281.9469039,0.00021745,5]
[313283651,1707079899007,1281.9469039,0.00022078,5]
[313283653,1707079909724,10128.252,0.00022426,2]
[313283654,1707079912876,2211.36933975,0.00021,4]
[313283655,1707079917025,1281.17157647,0.00022078,5]
[313283656,1707079927713,4493.63690479,0.000199,3]
[313283657,1707079960366,18342.73279431,0.00022143,2]
[313283658,1707079960395,1224.28720569,0.00022143,2]
[313283659,1707079975777,2000.0,0.00022011,2]
[313283660,1707079976762,493.4,0.00020093,2]
[313283661,1707079976969,493.4,0.00022357,2]
[313283665,1707080075778,352.39,0.00021828,2]
[313283666,1707080117669,500.0,0.00021918,2]
[313283667,1707080198273,177.08,0.00021963,2]
[313283668,1707080198487,177.08,0.00022023,2]
[313283669,1707080198699,177.08,0.00022083,2]
[313283670,1707080198914,177.08,0.00022144,2]
[313283671,1707080199142,177.08,0.00022204,2]
[313283672,1707080199352,177.08,0.00022264,2]
[313283673,1707080199690,177.08,0.00022324,2]
[313283674,1707080199940,177.08,0.00022385,2]
[313283675,1707080200128,177.08,0.00022445,2]
[313283676,1707080216952,200.0,0.00021792,2]
[313283677,1707080242122,-2575.3,0.00022502,2]
[313283678,1707080250584,699.44102538,0.00022501,2]
[313283679,1707080252269,464.8,0.00021781,2]
[313283680,1707080265950,197.65742886,0.00022501,2]
[313283681,1707080268497,5233.15937147,0.00022501,2]
[313283682,1707080271548,315.36950451,0.00022501,2]
[313283683,1707080280715,2146.69723866,0.00022501,2]
[313283684,1707080284443,208.60065097,0.00022501,2]
[313283685,1707080285544,250.0,0.00021786,2]
[313283686,1707080287580,5463.24497765,0.00022501,2]
[313283687,1707080288165,203.78334951,0.00022501,2]
[313283688,1707080329530,281.59,0.00021773,2]
[313283689,1707080336087,1286.47029581,0.00022366,2]
[313283690,1707080343023,5233.15937147,0.00022501,2]
[313283691,1707080370938,208.60065097,0.00022501,2]
[313283692,1707080405139,526.98480998,0.00022501,2]
[313283693,1707080413593,2000.0,0.00021762,2]
[313283694,1707080417977,1543.32,0.00021762,2]
[313283695,1707080511263,155.1,0.00021767,2]
[313283696,1707080527129,856.49,0.0002176,2]
[313283697,1707080554437,21559.98,0.0002176,2]
[313283698,1707080598837,1366.64683452,0.00022501,2]
[313283699,1707080629159,3257.2014,0.00022483,2]
[313283700,1707080658317,157.12498776,0.00022402,2]
[313283701,1707080665757,151.93,0.00021935,2]
[313283702,1707080665974,151.93,0.00022006,2]
[313283703,1707080666319,151.93,0.00022077,2]
[313283704,1707080666379,151.93,0.00022149,2]
[313283705,1707080666790,151.93,0.0002222,2]
[313283706,1707080667021,151.93,0.00022292,2]
[313283707,1707080667256,151.93,0.00022363,2]
[313283708,1707080667448,151.93,0.00022435,2]
[313283709,1707080681552,538.14,0.00019843,2]
[313283710,1707080681759,538.14,0.00022107,2]
[313283711,1707080690444,628.16,0.00021761,2]
[313283712,1707080707410,3897.1646,0.00022483,2]
[313283713,1707080713611,150.0,0.00022492,2]
[313283714,1707080762175,150.0,0.00022501,2]
[313283715,1707080840315,281.59,0.00021779,2]
[313283716,1707080889635,503.84,0.00021761,2]
[313283717,1707080904461,2000.0,0.00021761,2]
[313283718,1707080906738,1434.06,0.00021769,2]
[313283719,1707080941193,314.74,0.00021761,2]
[313283720,1707080967854,1286.47029581,0.00022482,2]
[313283721,1707081022782,250.0,0.0002177,2]
[313283722,1707081028749,157.12498775,0.00022402,2]
[313283734,1707081034243,-836.62527966,0.00022502,2]
[313283735,1707081034299,-755.43295338,0.00022502,2]
[313283736,1707081034308,-525.39690255,0.00022502,2]
[313283737,1707081034318,-332.94367323,0.00022502,2]
[313283738,1707081034331,-570.09,0.00022502,2]
[313283739,1707081034343,-40.40229223,0.00022502,2]
[313283740,1707081034353,-526.53627836,0.00022502,2]
[313283741,1707081034362,-208.47052732,0.00022502,2]
[313283742,1707081034373,-692.38620334,0.00022503,2]
[313283743,1707081034382,-203.31012739,0.00022503,2]
[313283744,1707081034391,-5222.22600698,0.00022503,2]
[313283745,1707081034400,-203.83211931,0.00022504,2]
[313283746,1707081034409,-444.00342599,0.00022505,2]
[313283747,1707081034418,-564.7170032,0.00022505,2]
[313283748,1707081034427,-203.2616882,0.00022505,2]
[313283749,1707081034441,-162.04462085,0.00022505,2]
[313283750,1707081034450,-134.63613715,0.00022505,2]
[313283751,1707081034462,-333.17331082,0.00022505,2]
[313283752,1707081034477,-63.04958235,0.00022505,2]
[313283753,1707081034486,-196.89972781,0.00022505,2]
[313283754,1707081034495,-313.94907581,0.00022505,2]
[313283755,1707081034504,-151.93,0.00022506,2]
[313283756,1707081034513,-1410.94790562,0.00022512,2]
[313283757,1707081034524,-163.68059438,0.00022512,2]
[313283758,1707081034533,-4028.97,0.00022569,2]
[313283760,1707081034542,-7807.34940612,0.00022569,2]
[313283762,1707081034552,-3268.16376235,0.00022569,2]
[313283764,1707081034563,-473.48937259,0.00022569,2]
[313283767,1707081034579,-606.71636698,0.00022569,2]
[313283769,1707081034589,-404.60980498,0.00022569,2]
[313283772,1707081034600,-378.25609224,0.00022569,2]
[313283774,1707081034611,-1131.30282455,0.00022569,2]
[313283796,1707081038397,-424.099996,0.00022502,2]
[313283797,1707081038412,-561.22252724,0.00022502,2]
[313283798,1707081038425,-278.20064693,0.00022502,2]
[313283799,1707081038438,-894.44295914,0.00022502,2]
[313283800,1707081038452,-398.96989766,0.00022502,2]
[313283801,1707081039606,-3664.52,0.00022502,2]
[313283802,1707081039617,-2279.32347212,0.00022502,2]
[313283803,1707081039629,-4479.72924,0.00022502,2]
[313283822,1707081040253,-12520.9012805,0.00022502,2]
[313283823,1707081040265,-4357.37682079,0.00022502,2]
[313283824,1707081040274,-4766.17237019,0.00022569,2]
[313283825,1707081040283,-2026.29,0.00022569,2]
[313283826,1707081040292,-2218.5,0.00022569,2]
[313283827,1707081040302,-311.10938782,0.00022574,2]
[313283828,1707081040311,-644.4455013,0.00022574,2]
[313283829,1707081040321,-478.08,0.00022574,2]
[313283830,1707081040330,-499.99,0.00022574,2]
[313283831,1707081040339,-2789.28128884,0.00022575,2]
[313283832,1707081040349,-151.93,0.00022577,2]
[313283833,1707081040358,-191.49315037,0.00022578,2]
[313283834,1707081040367,-2131.53403457,0.0002258,2]
[313283835,1707081040376,-4584.97913995,0.00022581,2]
[313283836,1707081040385,-732.88,0.00022583,2]
[313283837,1707081040395,-734.73,0.00022585,2]
[313283838,1707081040405,-720.9,0.00022585,2]
[313283839,1707081040414,-737.78,0.00022587,2]
[313283840,1707081040427,-713.69,0.00022612,2]
[313283841,1707081040437,-151.93,0.00022649,2]
[313283842,1707081040446,-726.36,0.00022669,2]
[313283843,1707081040455,-151.93,0.0002272,2]
[313283844,1707081040464,-2340.91798625,0.00022768,2]
[313283845,1707081040476,-487.77296906,0.00022768,2]
[313283846,1707081040485,-153.30866,0.0002277,2]
[313283847,1707081040494,-151.93,0.00022792,2]
[313283848,1707081040503,-1000.0,0.00022797,2]
[313283849,1707081040512,-314.74,0.00022849,2]
[313283850,1707081040521,-151.93,0.00022863,2]
[313283851,1707081040530,-854.49147987,0.000229,2]
[313283852,1707081040539,-151.93,0.00022935,2]
[313283853,1707081040549,-721.17,0.00022983,2]
[313283854,1707081040558,-263.66232949,0.00022996,2]
[313283855,1707081040567,-164.92227131,0.00022996,2]
[313283856,1707081040576,-155.0,0.00022996,2]
[313283857,1707081040585,-3150.05327985,0.00022996,2]
[313283858,1707081040594,-461.63214717,0.00022997,2]
[313283859,1707081040604,-216.88992443,0.00022997,2]
[313283860,1707081040613,-342.68960484,0.00022997,2]
[313283861,1707081040622,-199.69877423,0.00022997,2]
[313283862,1707081040631,-2105.13278376,0.00022998,2]
[313283863,1707081040640,-4687.7232998,0.00022998,2]
[313283864,1707081040649,-3689.69906595,0.00022998,4]
[313283865,1707081040658,-1978.7463602,0.00022998,2]
[313283866,1707081040668,-420.83273741,0.00022998,2]
[313283867,1707081040677,-4642.12330423,0.00022998,2]
[313283868,1707081040686,-228.31643771,0.00022999,2]
[313283869,1707081040695,-7811.13114191,0.00022999,2]
[313283870,1707081040704,-199.58150061,0.00022999,2]
[313283871,1707081040714,-347.41827726,0.00022999,2]
[313283872,1707081040724,-533.90351792,0.00022999,2]
[313283873,1707081040736,-150.01,0.00022999,2]
[313283874,1707081040746,-3308.69286577,0.00022999,2]
[313283875,1707081040755,-86596.29080616,0.00022999,2]
[313283876,1707081040806,-8545.54394261,0.00022999,2]
[313283877,1707081040866,-979.67391843,0.00022999,2]
[313283878,1707081040918,-265.8551209,0.00022999,2]
[313283879,1707081040929,-320.98497959,0.00022999,2]
[313283880,1707081040940,-5856.96729047,0.00022999,2]